bitfinex-derivatives/quotes_SOLF0:USTF0_20250101
["timestamp","ask_amount","ask_price","bid_price","bid_amount"]
[1735766647239,4.7309,195.45,195.36,2.5646]
[1735766648240,4.7309,195.45,195.37,3.1]
[1735766649038,4.7309,195.45,195.37,5.6644]
[1735766650241,8.06785748,195.43,195.37,5.6644]
[1735766650837,4.7309,195.45,195.31,3.1146]
[1735766650838,8.06785748,195.41,195.31,3.1146]
[1735766651134,8.06785748,195.39,195.32,3.1]
[1735766651334,8.06785748,195.37,195.31,3.1]
[1735766653441,8.06785748,195.37,195.31,11.16785748]
[1735766655044,8.06785748,195.35,195.21,1.5636]
[1735766655243,8.06785748,195.35,195.28,8.06785748]
[1735766656243,3.1,195.44,195.3,8.06785748]
[1735766656441,8.06785748,195.39,195.32,8.06785748]
[1735766656941,8.06785748,195.37,195.3,8.06785748]
[1735766657442,8.06785748,195.35,195.3,8.06785748]
[1735766657642,8.06785748,195.35,195.3,3.1]
[1735766658640,8.06785748,195.35,195.26,2.5658]
[1735766658840,8.06785748,195.33,195.27,3.1]
[1735766659682,8.06785748,195.33,195.27,11.16785748]
[1735766659845,8.06785748,195.35,195.27,13.73345748]
[1735766660147,1.5326,195.36,195.27,11.16785748]
[1735766660342,8.06785748,195.35,195.29,10.63325748]
[1735766660741,1.5326,195.36,195.29,10.63325748]
[1735766660940,9.60045748,195.36,195.3,2.5654]
[1735766661546,9.60045748,195.36,195.29,8.06785748]
[1735766661747,9.60045748,195.36,195.31,2.5652]
[1735766662246,1.5326,195.36,195.31,2.5652]
[1735766664748,1.5326,195.36,195.27,15.71375971]
[1735766664949,1.5326,195.36,195.3,2.5654]
[1735766665148,1.5326,195.36,195.27,15.71375971]
[1735766665349,1.5326,195.36,195.24,12.61375971]
[1735766665549,1.5326,195.36,195.25,3.1]
[1735766666050,1.5326,195.36,195.27,2.5656]
[1735766666249,1.5326,195.36,195.28,3.1]
[1735766666652,1.5326,195.36,195.29,5.6654]
[1735766667048,1.5326,195.36,195.29,3.1]
[1735766668753,1.5326,195.36,195.26,3.1]
[1735766668754,12.61375971,195.34,195.26,3.1]
[1735766669455,12.61375971,195.34,195.24,3.1]
[1735766671058,12.61375971,195.34,195.25,2.566]
[1735766672456,12.61375971,195.34,195.21,12.61375971]
[1735766672763,12.61375971,195.31,195.22,3.1]
[1735766672962,12.61375971,195.31,195.22,5.6664]
[1735766673158,12.61375971,195.31,195.22,3.1]
[1735766673357,12.61375971,195.31,195.21,12.61375971]
[1735766673559,12.61375971,195.31,195.23,2.5662]
[1735766673759,1.5326,195.36,195.22,3.1]
[1735766673958,12.61375971,195.35,195.22,3.1]
[1735766674457,12.61375971,195.35,195.25,2.566]
[1735766675266,12.61375971,195.35,195.26,2.5659]
[1735766675957,12.61375971,195.35,195.22,3.1]
[1735766676165,12.61375971,195.35,195.24,2.566]
[1735766676360,12.61375971,195.35,195.21,12.61375971]
[1735766676864,12.61375971,195.35,195.22,3.1]
[1735766677163,12.61375971,195.35,195.22,5.6664]
[1735766677659,12.61375971,195.32,195.22,3.1]
[1735766677961,1.5758,195.31,195.21,3.1]
[1735766678169,1.5326,195.36,195.27,2.5656]
[1735766678355,1.5326,195.36,195.27,3.1]
[1735766680866,12.61375971,195.35,195.27,3.1]
[1735766682367,8.07751849,195.32,195.27,3.1]
[1735766683564,8.07751849,195.32,195.25,8.07751849]
[1735766683871,8.07751849,195.3,195.23,11.17751849]
[1735766684170,8.07751849,195.3,195.23,8.07751849]
[1735766684565,8.07751849,195.28,195.19,2.5667]
[1735766684769,8.07751849,195.28,195.21,8.07751849]
[1735766685163,8.07751849,195.28,195.19,2.5667]
[1735766685370,8.07751849,195.24,195.18,3.1]
[1735766686770,8.07751849,195.24,195.17,8.07751849]
[1735766688071,9.65181849,195.26,195.19,8.07751849]
[1735766688270,65.17995525,196.59,195.19,8.07751849]
[1735766688271,12.62536192,195.31,195.19,12.62536192]
[1735766688473,3.1411,195.32,195.22,12.62536192]
[1735766688676,3.1411,195.32,195.23,3.1]
[1735766688978,60.22726221,195.32,195.23,3.1]
[1735766689177,60.22726221,195.32,195.24,2.5661]
[1735766689969,3.1411,195.32,195.24,2.5661]
[1735766690574,3.1411,195.32,195.23,3.1]
[1735766690575,3.1411,195.32,195.23,5.6663]
[1735766691371,3.1411,195.32,195.23,3.1]
[1735766693573,3.1411,195.32,195.23,5.6663]
[1735766697578,3.1411,195.32,195.23,2.5663]
[1735766698473,3.1411,195.32,195.22,5.6064]
[1735766700379,12.62536192,195.31,195.21,3.04]
[1735766700581,12.62536192,195.31,195.19,3.04]
[1735766701171,12.62536192,195.31,195.23,2.5662]
[1735766701371,12.62536192,195.31,195.2,12.62536192]
[1735766702379,3.1411,195.32,195.2,12.62536192]
[1735766702787,3.1411,195.32,195.25,2.566]
[1735766704671,3.1411,195.32,195.26,2.5658]
[1735766704875,1.5282,195.32,195.24,3.04]
[1735766705580,12.62536192,195.34,195.25,2.566]
[1735766707086,60.08376221,195.36,195.24,3.04]
[1735766707585,60.08376221,195.36,195.3,2.5654]
[1735766707785,2.9976,195.36,195.3,2.5654]
[1735766708181,8.07436826,195.35,195.3,2.5654]
[1735766708381,8.07436826,195.35,195.28,8.07436826]
[1735766708576,8.07436826,195.35,195.29,2.5655]
[1735766710683,8.07436826,195.35,195.28,8.07436826]
[1735766710988,8.07436826,195.35,195.28,10.63996826]
[1735766711390,8.07436826,195.35,195.28,8.07436826]
[1735766712389,8.07436826,195.33,195.24,3.06]
[1735766712588,8.07436826,195.33,195.25,8.07436826]
[1735766712793,8.07436826,195.31,195.25,8.07436826]
[1735766712990,8.07436826,195.29,195.21,1.6195]
[1735766713181,8.07436826,195.29,195.22,3.04]
[1735766713381,3.04,195.34,195.21,3.04]
[1735766713382,8.07436826,195.27,195.21,3.04]
[1735766713692,8.07436826,195.27,195.21,11.11436826]
[1735766714281,8.07436826,195.27,195.21,8.07436826]
[1735766714990,8.07436826,195.27,195.19,11.11436826]
[1735766715193,8.07436826,195.23,195.16,3.04]
[1735766715491,8.07436826,195.23,195.17,8.07436826]
[1735766716093,8.07436826,195.21,195.15,11.11436826]
[1735766718191,7.6572,195.28,195.11,3.1665]
[1735766718192,12.63870822,195.2,195.11,3.04]
[1735766718390,12.63870822,195.2,195.08,12.63870822]
[1735766718589,1.5081,195.19,195.09,3.04]
[1735766718993,1.5081,195.19,195.09,5.6081]
[1735766719294,1.5081,195.19,195.09,3.04]
[1735766719496,4.6137,195.19,195.09,3.04]
[1735766719693,12.63870822,195.17,195.09,3.04]
[1735766719894,15.67870822,195.17,195.04,12.63870822]
[1735766720086,15.67870822,195.17,195.04,15.67870822]
[1735766720293,3.04,195.17,195.04,15.67870822]
[1735766720492,12.63870822,195.15,195.04,15.67870822]
[1735766721094,12.63870822,195.15,195.05,2.5686]
[1735766721685,12.63870822,195.15,195.04,15.67870822]
[1735766721892,12.63870822,195.15,195.03,2.5688]
[1735766722202,12.63870822,195.15,195.03,3.04]
[1735766722491,12.63870822,195.15,195.02,4.41191139]
[1735766722698,12.63870822,195.15,195.02,7.45191139]
[1735766724397,12.63870822,195.15,195.02,4.88291139]
[1735766724590,3.04,195.14,195.04,12.63870822]
[1735766724797,15.67870822,195.18,195.04,12.63870822]
[1735766726296,15.67870822,195.18,195.06,2.5684]
[1735766727101,15.67870822,195.18,195.07,2.5684]
[1735766727399,12.63870822,195.14,195.02,1.84291139]
[1735766727601,12.63870822,195.11,195.01,2.5691]
[1735766730193,3.02,195.12,195.03,2.5689]
[1735766730497,3.02,195.12,195.02,12.63870822]
[1735766730998,3.02,195.16,195.05,12.63870822]
[1735766731300,15.65870822,195.18,195.05,15.65870822]
[1735766731899,12.63870822,195.18,195.05,15.65870822]
[1735766732505,12.63870822,195.18,195.08,2.5682]
[1735766733197,12.63870822,195.18,195.09,2.5681]
[1735766733398,12.63870822,195.18,195.08,12.63870822]
[1735766733597,4.6137,195.19,195.08,12.63870822]
[1735766733805,4.6137,195.19,195.12,2.5677]
[1735766734307,4.6137,195.19,195.1,3.02]
[1735766734598,4.6137,195.19,195.1,5.5879]
[1735766734991,4.6137,195.19,195.11,2.5678]
[1735766735200,4.6137,195.19,195.1,3.02]
[1735766735999,4.6137,195.19,195.11,12.63870822]
[1735766736205,3.02,195.23,195.11,12.63870822]
[1735766736400,12.63870822,195.24,195.11,12.63870822]
[1735766738208,12.63870822,195.24,195.13,2.5675]
[1735766738502,12.63870822,195.24,195.11,12.63870822]
[1735766738705,12.63870822,195.24,195.13,2.5676]
[1735766738905,12.63870822,195.24,195.14,12.63870822]
[1735766739201,12.63870822,195.24,195.15,3.02]
[1735766739705,12.63870822,195.27,195.15,3.02]
[1735766740302,12.63870822,195.27,195.18,2.5669]
[1735766740502,12.63870822,195.27,195.15,3.02]
[1735766741604,12.63870822,195.27,195.14,15.65870822]
[1735766741797,12.63870822,195.27,195.14,3.02]
[1735766742000,12.63870822,195.27,195.14,5.5874]
[1735766744103,12.63870822,195.27,195.14,3.02]
[1735766744305,3.02,195.26,195.18,2.5669]
[1735766744706,3.02,195.26,195.16,12.63870822]
[1735766744903,12.63870822,195.25,195.11,3.1198]
[1735766745098,12.63870822,195.25,195.12,3.02]
[1735766745907,12.63870822,195.22,195.12,3.02]
[1735766746304,12.63870822,195.22,195.1,12.63870822]
[1735766746500,7.7882,195.21,195.11,3.02]
[1735766746701,12.63870822,195.19,195.09,2.568]
[1735766747111,12.63870822,195.19,195.09,5.588]
[1735766749106,12.63870822,195.19,195.1,2.568]
[1735766751706,12.63870822,195.19,195.09,3.02]
[1735766752514,12.63870822,195.19,195.09,5.588]
[1735766752903,12.63870822,195.19,195.09,3.02]
[1735766753304,12.63870822,195.19,195.1,2.568]
[1735766754712,12.63870822,195.19,195.09,3.02]
[1735766755310,12.63870822,195.16,195.06,3.02]
[1735766755511,15.65870822,195.16,195.06,3.02]
[1735766755917,15.65870822,195.16,195.06,2.5685]
[1735766756217,15.65870822,195.16,195.04,12.63870822]
[1735766756416,15.65870822,195.16,195.05,5.5885]
[1735766756910,12.63870822,195.16,195.05,3.02]
[1735766757111,4.7682,195.21,195.1,2.5679]
[1735766757112,17.40690822,195.21,195.1,2.5679]
[1735766757312,17.40690822,195.21,195.1,5.5879]
[1735766759115,17.40690822,195.21,195.1,3.02]
[1735766761213,12.63870822,195.15,195.04,12.63870822]
[1735766761518,12.63870822,195.15,195.05,3.02]
[1735766762515,4.6748,195.14,195.04,2.5687]
[1735766762714,4.6748,195.14,195.04,5.5887]
[1735766762917,12.63870822,195.12,195.01,12.63870822]
[1735766763117,12.63870822,195.06,194.93,3.02]
[1735766763311,12.63870822,195.06,194.93,15.65870822]
[1735766763522,12.63870822,195.06,194.94,4.87547555]
[1735766763821,12.63870822,195.06,194.97,2.5697]
[1735766764520,12.63870822,195.06,194.98,2.5695]
[1735766764715,12.63870822,195.06,194.93,12.63870822]
[1735766764915,12.63870822,195.09,195.0,2.5692]
[1735766765721,12.63870822,195.09,194.99,3.02]
[1735766767320,12.63870822,195.09,194.99,15.65870822]
[1735766768323,12.63870822,195.09,195.02,2.5689]
[1735766768522,4.6748,195.14,195.02,12.63870822]
[1735766768732,3.0532,195.14,195.05,12.63870822]
[1735766769024,12.63870822,195.18,195.06,3.02]
[1735766769424,12.63870822,195.18,195.07,2.5683]
[1735766771730,12.63870822,195.18,195.09,2.568]
[1735766772523,4.5114,195.19,195.08,12.63870822]
[1735766772725,3.5401511,195.23,195.11,12.63870822]
[1735766772927,3.5401511,195.23,195.14,12.63870822]
[1735766773126,17.30210822,195.25,195.17,2.567]
[1735766774130,4.6634,195.25,195.18,2.5669]
[1735766774930,1.6056,195.25,195.19,2.5667]
[1735766775226,1.6056,195.25,195.17,12.63870822]
[1735766775425,12.63870822,195.28,195.15,3.02]
[1735766775426,3.124,195.29,195.21,2.5665]
[1735766775629,3.124,195.29,195.2,15.65870822]
[1735766776331,12.63870822,195.25,195.2,3.02]
[1735766776525,1.5449,195.24,195.2,3.02]
[1735766776831,1.5449,195.24,195.16,3.02]
[1735766777024,1.5449,195.24,195.16,5.5872]
[1735766777229,1.5449,195.24,195.16,3.02]
[1735766779029,1.5449,195.24,195.16,5.5872]
[1735766780837,12.63870822,195.22,195.13,3.02]
[1735766781133,12.63870822,195.19,195.11,3.02]
[1735766781529,12.63870822,195.16,195.11,3.02]
[1735766781931,12.63870822,195.16,195.07,2.5683]
[1735766782142,12.63870822,195.16,195.07,5.5883]
[1735766782732,12.63870822,195.16,195.07,3.02]
[1735766782933,1.5772,195.15,195.07,3.02]
[1735766783531,12.63870822,195.13,195.06,3.02]
[1735766783835,12.63870822,195.13,195.04,3.02]
[1735766784033,3.057,195.12,195.04,3.02]
[1735766786134,12.63870822,195.1,195.04,3.02]
[1735766787340,12.63870822,195.1,195.02,2.569]
[1735766787541,12.63870822,195.1,195.03,2.5688]
[1735766787839,12.63870822,195.1,195.01,3.02]
[1735766788135,12.63870822,195.1,195.03,2.5689]
[1735766788341,3.057,195.12,195.03,2.5689]
[1735766789633,3.057,195.12,195.02,2.569]
[1735766794243,12.63870822,195.1,195.01,2.5692]
[1735766794444,12.63870822,195.1,195.0,3.02]
[1735766796544,12.63870822,195.1,195.0,5.5893]
[1735766797048,12.63870822,195.1,195.0,3.02]
[1735766797249,12.63870822,195.1,194.98,5.5895]
[1735766797449,12.63870822,195.1,194.98,2.5695]
[1735766797648,12.63870822,195.07,194.97,2.5697]
[1735766797951,4.6235,195.06,194.97,2.5697]
[1735766798850,4.6235,195.06,194.98,2.5695]
[1735766799044,12.63870822,195.01,194.85,28.14948393]
[1735766799238,12.63870822,195.01,194.89,12.63870822]
[1735766799438,12.63870822,195.01,194.92,2.5703]
[1735766801148,15.65870822,195.01,194.92,2.5703]
[1735766801544,15.65870822,195.01,194.9,3.02]
[1735766801746,15.65870822,195.01,194.91,2.5705]
[1735766802345,15.65870822,195.01,194.88,3.02]
[1735766802551,12.63870822,194.98,194.88,3.02]
[1735766803452,12.63870822,194.98,194.9,2.5706]
[1735766805444,12.63870822,194.98,194.88,3.02]
[1735766805646,3.1503,195.0,194.89,12.63870822]
[1735766806949,3.1503,195.0,194.93,2.5702]
[1735766807253,3.1503,195.0,194.89,12.63870822]
[1735766809055,1.5395,195.0,194.96,2.5698]
[1735766809250,12.63870822,195.01,194.96,2.5698]
[1735766811256,12.63870822,195.04,194.93,3.04]
[1735766811453,3.0663,195.05,194.95,12.63870822]
[1735766811651,3.0663,195.05,194.99,2.5694]
[1735766813656,12.63870822,195.01,194.93,2.5702]
[1735766814253,12.63870822,195.01,194.89,4.5819]
[1735766814457,12.63870822,195.01,194.94,2.57]
[1735766814857,12.63870822,195.01,194.9,12.63870822]
[1735766815554,12.63870822,195.01,194.94,2.5701]
[1735766817162,12.63870822,195.01,194.92,2.5702]
[1735766818156,12.63870822,195.01,194.9,12.63870822]
[1735766818357,12.63870822,195.01,194.95,2.5699]
[1735766820062,3.04,195.02,194.94,3.02]
[1735766820459,12.63870822,195.04,194.94,3.02]
[1735766820661,12.63870822,195.07,194.96,12.63870822]
[1735766821461,12.63870822,195.07,195.0,2.5692]
[1735766821658,12.63870822,195.07,194.96,12.63870822]
[1735766821858,12.63870822,195.07,194.97,2.5697]
[1735766822261,12.63870822,195.07,194.94,3.02]
[1735766823462,12.63870822,195.07,194.98,2.5695]
[1735766824965,12.63870822,195.07,195.01,2.5691]
[1735766825158,12.63870822,195.07,194.94,4.5938]
[1735766825869,12.63870822,195.07,194.98,2.5695]
[1735766828059,12.63870822,195.07,194.94,4.5938]
[1735766828366,12.63870822,195.1,194.96,12.63870822]
[1735766828562,12.63870822,195.1,194.99,12.63870822]
[1735766828757,4.6033,195.11,195.0,3.02]
[1735766829162,3.0686,195.11,195.0,3.02]
[1735766829563,12.63870822,195.13,195.0,3.02]
[1735766830562,12.63870822,195.13,195.02,12.63870822]
[1735766830766,3.02,195.15,195.02,12.63870822]
[1735766830967,3.02,195.15,195.03,1.5889]
[1735766831367,12.63870822,195.13,195.03,1.5889]
[1735766831769,12.63870822,195.13,195.05,2.5685]
[1735766832165,12.63870822,195.1,195.01,3.02]
[1735766832566,12.63870822,195.1,195.01,5.5892]
[1735766833062,12.63870822,195.1,195.01,3.02]
[1735766833268,12.63870822,195.1,195.02,2.569]
[1735766834660,12.63870822,195.1,195.01,3.02]
[1735766834865,12.63870822,195.07,195.0,2.5692]
[1735766837469,12.63870822,195.07,195.03,2.5688]
[1735766837670,1.6148,195.09,194.99,12.63870822]
[1735766838070,1.6148,195.09,195.02,2.569]
[1735766839971,3.0742,195.13,195.07,2.5684]
[1735766840173,57.08616221,195.16,195.08,15.65870822]
[1735766840474,52.22036221,195.16,195.14,12.63870822]
[1735766840673,14.81299241,195.17,195.16,2.5672]
[1735766840876,179.50345141,195.2,195.15,3.02]
[1735766841068,1.6051,195.28,195.18,12.63870822]
[1735766841264,1.6051,195.28,195.21,2.5665]
[1735766841467,1.6051,195.28,195.2,3.02]
[1735766842368,1.6051,195.28,195.2,5.5866]
[1735766844372,1.6051,195.28,195.2,3.02]
[1735766844576,1.6051,195.28,195.22,2.5664]
[1735766845074,1.5493,195.32,195.25,2.566]
[1735766845373,1.5493,195.32,195.25,3.02]
[1735766845770,3.043,195.35,195.27,12.63870822]
[1735766846275,3.043,195.35,195.29,2.5654]
[1735766846476,3.02,195.42,195.3,3.02]
[1735766846671,3.2078,195.41,195.3,3.02]
[1735766847467,3.2078,195.41,195.32,2.5651]
[1735766849175,3.2078,195.41,195.35,2.5647]
[1735766849479,3.2078,195.41,195.35,3.0]
[1735766849874,12.63870822,195.4,195.35,3.0]
[1735766850075,12.63870822,195.4,195.31,3.0]
[1735766851476,3.2078,195.41,195.31,3.0]
[1735766851875,3.2078,195.41,195.33,2.5649]
[1735766852871,3.2078,195.41,195.34,2.5648]
[1735766853078,3.2078,195.41,195.31,3.0]
[1735766854586,3.2078,195.41,195.35,2.5647]
[1735766854784,12.63870822,195.4,195.31,3.0]
[1735766855182,12.63870822,195.37,195.3,3.0]
[1735766855683,12.63870822,195.37,195.25,7.03737098]
[1735766855980,3.2078,195.41,195.26,3.0]
[1735766855981,12.63870822,195.34,195.26,3.0]
[1735766856685,1.5376,195.36,195.26,3.0]
[1735766856885,1.5376,195.36,195.29,2.5655]
[1735766858182,1.5376,195.36,195.26,3.0]
[1735766858785,12.63870822,195.4,195.32,2.565]
[1735766858982,12.63870822,195.4,195.31,3.0]
[1735766865204,12.63870822,195.34,195.26,3.0]
[1735766865504,3.08,195.33,195.25,3.0]
[1735766865999,1.5201,195.32,195.25,2.5659]
[1735766866199,1.5201,195.32,195.24,3.0]
[1735766867296,12.63870822,195.31,195.24,2.5661]
[1735766867605,12.63870822,195.31,195.23,3.0]
[1735766868104,1.5201,195.32,195.23,3.0]
[1735766868397,1.5201,195.32,195.24,2.5661]
[1735766868601,1.5201,195.32,195.23,3.0]
[1735766869602,1.5201,195.32,195.25,2.566]
[1735766871400,1.5201,195.32,195.24,3.0]
[1735766871903,12.63870822,195.31,195.22,3.0]
[1735766874808,12.63870822,195.31,195.22,5.5663]
[1735766875009,12.63870822,195.31,195.22,3.0]
[1735766876501,12.63870822,195.31,195.24,2.5661]
[1735766876904,1.5201,195.32,195.22,3.0]
[1735766877100,1.5201,195.32,195.24,12.63870822]
[1735766877501,3.08,195.33,195.24,12.63870822]
[1735766877908,3.08,195.33,195.26,2.5658]
[1735766878205,3.08,195.33,195.24,12.63870822]
[1735766878206,3.08,195.33,195.27,3.0]
[1735766878807,3.08,195.33,195.27,5.5657]
[1735766879706,3.08,195.33,195.27,3.0]
[1735766881812,4.6733,195.33,195.27,3.0]
[1735766882605,4.6733,195.33,195.24,5.5661]
[1735766882810,12.63870822,195.31,195.24,3.0]
[1735766883200,4.6733,195.33,195.24,3.0]
[1735766883808,3.08,195.33,195.24,3.0]
[1735766884010,1.5768,195.33,195.24,15.63870822]
[1735766884408,1.5768,195.33,195.25,4.8550509]
[1735766884805,1.515,195.38,195.26,4.8550509]
[1735766885111,1.515,195.38,195.27,4.8550509]
[1735766885406,1.515,195.38,195.28,2.5655]
[1735766885606,1.515,195.38,195.29,3.0]
[1735766886413,1.515,195.38,195.29,5.5654]
[1735766887012,1.515,195.38,195.29,3.0]
[1735766887309,1.5401,195.43,195.3,12.63870822]
[1735766888112,1.5401,195.43,195.33,2.5649]
[1735766888310,1.5401,195.43,195.34,3.0]
[1735766888912,12.63870822,195.41,195.31,3.0]
[1735766889116,3.2205,195.4,195.31,3.0]
[1735766889816,12.63870822,195.38,195.31,3.0]
[1735766891510,3.2205,195.4,195.31,3.0]
[1735766892618,3.2205,195.4,195.32,2.5651]
[1735766894214,3.2205,195.4,195.27,19.6760792]
[1735766894411,3.2205,195.4,195.28,3.0]
[1735766896918,3.2205,195.4,195.29,2.5655]
[1735766897114,3.2205,195.4,195.28,3.0]
[1735766897520,3.2205,195.4,195.28,5.5656]
[1735766899918,3.2205,195.4,195.29,2.5654]
[1735766900118,3.2205,195.4,195.28,3.0]
[1735766900926,3.2205,195.4,195.31,2.5652]
[1735766902418,3.2205,195.4,195.32,2.565]
[1735766903221,3.2205,195.4,195.28,3.0]
[1735766903421,3.2205,195.4,195.3,2.5653]
[1735766903721,3.2205,195.4,195.28,3.0]
[1735766904520,3.2205,195.4,195.29,2.5655]
[1735766904723,12.63870822,195.38,195.29,2.5655]
[1735766906824,12.63870822,195.38,195.3,3.0]
[1735766907420,3.2205,195.4,195.3,3.0]
[1735766907831,12.63870822,195.38,195.25,1.5984]
[1735766908125,12.63870822,195.35,195.26,3.0]
[1735766908328,8.07701046,195.31,195.26,3.0]
[1735766909328,8.07701046,195.31,195.21,2.5664]
[1735766909520,8.07701046,195.27,195.22,3.0]
[1735766910327,12.62559063,195.3,195.22,3.0]
[1735766911730,15.62559063,195.36,195.22,15.62559063]
[1735766912424,15.62559063,195.36,195.26,2.5658]
[1735766912625,1.5216,195.35,195.27,3.0]
[1735766914132,12.62559063,195.33,195.27,3.0]
[1735766914326,1.6036,195.32,195.27,3.0]
[1735766914525,3.1305,195.32,195.23,3.0]
[1735766914925,3.1305,195.32,195.19,21.21276161]
[1735766915229,3.1305,195.32,195.2,5.5667]
[1735766915427,12.62559063,195.3,195.2,7.43075748]
[1735766915631,12.62559063,195.3,195.21,3.0]
[1735766915929,3.1305,195.32,195.22,2.5663]
[1735766918231,15.75609063,195.32,195.22,2.5663]
[1735766918433,15.75609063,195.32,195.21,3.0]
[1735766918629,15.75609063,195.32,195.22,12.62559063]
[1735766919834,15.75609063,195.32,195.25,2.566]
[1735766920035,1.5216,195.35,195.26,3.0]
[1735766921336,1.5216,195.35,195.26,5.5658]
[1735766921934,1.5216,195.35,195.26,5.5659]
[1735766922434,1.5216,195.35,195.29,2.5655]
[1735766922836,1.5216,195.35,195.28,3.0]
[1735766923945,3.0,195.34,195.23,3.0]
[1735766925634,3.0,195.34,195.23,5.5663]
[1735766926037,3.0,195.34,195.23,3.0]
[1735766926238,3.0,195.34,195.24,2.5661]
[1735766927142,12.62559063,195.32,195.23,3.0]
[1735766927441,1.5422,195.31,195.23,3.0]
[1735766929941,12.62559063,195.29,195.23,3.0]
[1735766930546,12.62559063,195.29,195.19,5.5668]
[1735766931550,12.62559063,195.29,195.2,2.5666]
[1735766932261,8.08060525,195.27,195.2,10.64720525]
[1735766935258,8.08060525,195.27,195.2,13.64720525]
[1735766938761,8.08060525,195.27,195.2,5.5666]
[1735766939060,8.08060525,195.27,195.21,2.5665]
[1735766939757,8.08060525,195.27,195.2,11.08060525]
[1735766939962,8.08060525,195.27,195.22,2.5664]
[1735766940162,8.08060525,195.27,195.2,11.08060525]
[1735766940964,8.08060525,195.27,195.21,2.5664]
[1735766941463,8.08060525,195.27,195.22,2.5664]
[1735766941665,8.08060525,195.29,195.22,8.08060525]
[1735766942061,1.5422,195.31,195.24,8.08060525]
[1735766942364,8.08060525,195.34,195.26,8.08060525]
[1735766942578,8.08060525,195.34,195.28,8.08060525]
[1735766943064,8.08060525,195.34,195.28,10.64610525]
[1735766943471,8.08060525,195.34,195.25,2.96]
[1735766943663,8.08060525,195.34,195.26,8.08060525]
[1735766944364,8.08060525,195.3,195.21,2.96]
[1735766944572,8.08060525,195.28,195.21,11.04060525]
[1735766945165,4.4945,195.33,195.22,2.5664]
[1735766945468,8.08060525,195.28,195.22,2.5664]
[1735766946172,4.4945,195.33,195.25,2.566]
[1735766946470,8.08060525,195.31,195.25,2.566]
[1735766946670,8.08060525,195.29,195.23,10.64680525]
[1735766946868,8.08060525,195.29,195.23,8.08060525]
[1735766948475,8.08060525,195.29,195.24,2.5661]
[1735766948774,4.4945,195.33,195.24,2.5661]
[1735766949074,8.08060525,195.3,195.24,2.5661]
[1735766952681,8.08060525,195.28,195.22,2.5663]
[1735766952879,8.08060525,195.28,195.21,2.96]
[1735766953078,8.08060525,195.28,195.2,8.08060525]
[1735766953380,8.08060525,195.28,195.19,2.96]
[1735766953585,8.08060525,195.28,195.2,8.08060525]
[1735766953878,8.08060525,195.24,195.18,2.96]
[1735766957084,8.08060525,195.24,195.17,10.64770525]
[1735766958285,8.08060525,195.22,195.16,2.5672]
[1735766958579,8.08060525,195.22,195.14,7.03737098]
[1735766958883,8.08060525,195.2,195.13,11.04060525]
[1735766959586,8.08060525,195.2,195.14,2.5674]
[1735766960281,8.08060525,195.2,195.13,11.04060525]
[1735766960581,8.08060525,195.2,195.15,2.5673]
[1735766961885,8.08060525,195.18,195.15,2.5673]
[1735766965188,8.08060525,195.18,195.11,11.04060525]
[1735766965389,8.08060525,195.18,195.14,2.5675]
[1735766965591,8.08060525,195.18,195.11,11.04060525]
[1735766966092,8.08060525,195.18,195.11,13.60830525]
[1735766966792,8.08060525,195.18,195.12,2.5677]
[1735766967989,8.08060525,195.18,195.11,8.08060525]
[1735766968190,8.08060525,195.18,195.13,2.5676]
[1735766968485,8.08060525,195.21,195.15,8.08060525]
[1735766969090,8.08060525,195.21,195.09,36.51083662]
[1735766969091,9.60680525,195.25,195.17,8.08060525]
[1735766969688,9.60680525,195.25,195.2,2.5666]
[1735766969892,8.08060525,195.23,195.2,2.5666]
[1735766970293,8.08060525,195.23,195.17,8.08060525]
[1735766970495,8.08060525,195.23,195.19,2.5668]
[1735766971896,8.08060525,195.24,195.19,2.5668]